[Event "Titled Tuesday Blitz March 15 Early 2022"]
[White "Foisor, Sabina-Francesca"]
[Black "Perez Leiva, Jerzy Jesus"]
[WhiteFideId "1212915"]
[BlackFideId "3524337"]
[WhiteElo "2243"]
[BlackElo "2261"]
[Result "1-0"]
[Round "06"]
[TimeControl "180+1"]
[Date "2022.03.15"]
[WhiteClock "0:00:28"]
[BlackClock "0:00:07"]

1. Nf3 {[%clk 0:02:47]}  d5 {[%clk 0:02:56]} 2. d4 {[%clk 0:02:46]}  Nf6 {[%clk 0:02:56]} 3. c4 {[%clk 0:02:46]}  e6 {[%clk 0:02:56]} 4. Nc3 {[%clk 0:02:25]}  Bb4 {[%clk 0:02:56]} 5. Bg5 {[%clk 0:02:23]}  h6 {[%clk 0:02:55]} 6. Bxf6 {[%clk 0:02:21]}  Qxf6 {[%clk 0:02:56]} 7. e3 {[%clk 0:02:20]}  O-O {[%clk 0:02:55]} 8. a3 {[%clk 0:02:19]}  Bxc3+ {[%clk 0:02:53]} 9. bxc3 {[%clk 0:02:20]}  c5 {[%clk 0:02:54]} 10. Be2 {[%clk 0:02:08]}  dxc4 {[%clk 0:02:53]} 11. Bxc4 {[%clk 0:02:06]}  b6 {[%clk 0:02:31]} 12. O-O {[%clk 0:02:04]}  Bb7 {[%clk 0:02:32]} 13. Qe2 {[%clk 0:02:01]}  Nc6 {[%clk 0:02:24]} 14. Rad1 {[%clk 0:02:00]}  Na5 {[%clk 0:02:09]} 15. Ba2 {[%clk 0:02:00]}  Rac8 {[%clk 0:02:08]} 16. e4 {[%clk 0:01:55]}  Qf4 {[%clk 0:02:03]} 17. Rfe1 {[%clk 0:01:50]}  cxd4 {[%clk 0:02:02]} 18. cxd4 {[%clk 0:01:51]}  Rc3 {[%clk 0:02:02]} 19. d5 {[%clk 0:01:40]}  exd5 {[%clk 0:01:37]} 20. exd5 {[%clk 0:01:41]}  Rxa3 {[%clk 0:01:34]} 21. Rd4 {[%clk 0:01:34]}  Qd6 {[%clk 0:01:29]} 22. h3 {[%clk 0:01:21]}  Qf6 {[%clk 0:01:08]} 23. Rg4 {[%clk 0:00:51]}  h5 {[%clk 0:01:03]} 24. Rg3 {[%clk 0:00:51]}  h4 {[%clk 0:00:56]} 25. Rg4 {[%clk 0:00:49]}  Bc8 {[%clk 0:00:57]} 26. Re4 {[%clk 0:00:41]}  Bf5 {[%clk 0:00:11]} 27. Re8 {[%clk 0:00:39]}  Rxe8 {[%clk 0:00:08]} 28. Qxe8+ {[%clk 0:00:40]}  Kh7 {[%clk 0:00:09]} 29. Bb1 {[%clk 0:00:29]}  Ra1 {[%clk 0:00:07]} 30. Bxf5+ {[%clk 0:00:28]} 1-0


[Site "https://www.chess.com"]

[Event "Titled Tuesday Blitz March 15 Early 2022"]
[White "Golsta, Madara"]
[Black "Kanyamarala, Trisha"]
[WhiteFideId "11607386"]
[BlackFideId "45004722"]
[WhiteElo "1997"]
[BlackElo "2047"]
[Result "0-1"]
[Round "06"]
[TimeControl "180+1"]
[Date "2022.03.15"]
[WhiteClock "0:00:19"]
[BlackClock "0:01:12"]

1. e4 {[%clk 0:03:00]}  c5 {[%clk 0:02:59]} 2. Nf3 {[%clk 0:03:00]}  d6 {[%clk 0:03:00]} 3. d4 {[%clk 0:03:00]}  cxd4 {[%clk 0:03:00]} 4. Nxd4 {[%clk 0:03:00]}  Nf6 {[%clk 0:03:01]} 5. Nc3 {[%clk 0:03:00]}  Nc6 {[%clk 0:03:01]} 6. Bg5 {[%clk 0:02:58]}  e6 {[%clk 0:03:00]} 7. Qd2 {[%clk 0:02:58]}  a6 {[%clk 0:02:58]} 8. f3 {[%clk 0:02:55]}  h6 {[%clk 0:02:56]} 9. Be3 {[%clk 0:02:54]}  Bd7 {[%clk 0:02:54]} 10. O-O-O {[%clk 0:02:52]}  b5 {[%clk 0:02:54]} 11. Nxc6 {[%clk 0:02:36]}  Bxc6 {[%clk 0:02:54]} 12. Ne2 {[%clk 0:02:36]}  d5 {[%clk 0:02:48]} 13. Nd4 {[%clk 0:02:35]}  Bb7 {[%clk 0:02:46]} 14. e5 {[%clk 0:02:34]}  Nd7 {[%clk 0:02:45]} 15. f4 {[%clk 0:02:32]}  Rc8 {[%clk 0:02:45]} 16. Kb1 {[%clk 0:02:27]}  Nc5 {[%clk 0:02:45]} 17. Bd3 {[%clk 0:02:19]}  Ne4 {[%clk 0:02:38]} 18. Bxe4 {[%clk 0:02:02]}  dxe4 {[%clk 0:02:38]} 19. Qe2 {[%clk 0:02:01]}  Qc7 {[%clk 0:02:30]} 20. Rhf1 {[%clk 0:01:47]}  Bd5 {[%clk 0:02:28]} 21. f5 {[%clk 0:01:45]}  Bc4 {[%clk 0:02:26]} 22. Qh5 {[%clk 0:01:39]}  Bxf1 {[%clk 0:02:18]} 23. Rxf1 {[%clk 0:01:40]}  exf5 {[%clk 0:02:12]} 24. Qxf5 {[%clk 0:01:30]}  Bc5 {[%clk 0:02:07]} 25. c3 {[%clk 0:01:26]}  Bxd4 {[%clk 0:02:01]} 26. Bxd4 {[%clk 0:01:26]}  O-O {[%clk 0:01:56]} 27. Qxe4 {[%clk 0:01:21]}  Qc4 {[%clk 0:01:53]} 28. Rf3 {[%clk 0:01:17]}  Rfe8 {[%clk 0:01:40]} 29. Qf5 {[%clk 0:00:44]}  Rc7 {[%clk 0:01:33]} 30. Rg3 {[%clk 0:00:32]}  Re6 {[%clk 0:01:20]} 31. Rg4 {[%clk 0:00:28]}  Qe2 {[%clk 0:01:13]} 32. Bb6 {[%clk 0:00:19]}  Qd1# {[%clk 0:01:12]} 0-1


[Site "https://www.chess.com"]

[Event "Titled Tuesday Blitz March 15 Early 2022"]
[White "Golubev, Mikhail"]
[Black "Santos Ruiz, Miguel"]
[WhiteFideId "14100983"]
[BlackFideId "22291482"]
[WhiteElo "2374"]
[BlackElo "2486"]
[Result "1/2-1/2"]
[Round "06"]
[TimeControl "180+1"]
[Date "2022.03.15"]
[WhiteClock "0:00:13"]
[BlackClock "0:00:07"]

1. e4 {[%clk 0:02:50]}  e5 {[%clk 0:02:58]} 2. Nf3 {[%clk 0:02:50]}  Nc6 {[%clk 0:02:57]} 3. Bb5 {[%clk 0:02:50]}  a6 {[%clk 0:02:52]} 4. Ba4 {[%clk 0:02:50]}  d6 {[%clk 0:02:52]} 5. c3 {[%clk 0:02:47]}  Nf6 {[%clk 0:02:51]} 6. d4 {[%clk 0:02:44]}  Bd7 {[%clk 0:02:38]} 7. O-O {[%clk 0:02:36]}  g6 {[%clk 0:02:23]} 8. Re1 {[%clk 0:02:27]}  Bg7 {[%clk 0:02:22]} 9. h3 {[%clk 0:02:25]}  O-O {[%clk 0:02:22]} 10. dxe5 {[%clk 0:02:22]}  dxe5 {[%clk 0:02:15]} 11. Nbd2 {[%clk 0:02:18]}  Nh5 {[%clk 0:02:03]} 12. Nf1 {[%clk 0:02:12]}  Nf4 {[%clk 0:01:54]} 13. Bxf4 {[%clk 0:02:01]}  exf4 {[%clk 0:01:53]} 14. Qd2 {[%clk 0:02:01]}  Ne5 {[%clk 0:01:07]} 15. Bxd7 {[%clk 0:01:57]}  Qxd7 {[%clk 0:01:05]} 16. Qxf4 {[%clk 0:01:57]}  Nxf3+ {[%clk 0:00:56]} 17. Qxf3 {[%clk 0:01:58]}  Rad8 {[%clk 0:00:56]} 18. Qe2 {[%clk 0:01:48]}  Qe6 {[%clk 0:00:55]} 19. Nd2 {[%clk 0:01:43]}  Rd7 {[%clk 0:00:52]} 20. Nb3 {[%clk 0:01:39]}  Qc6 {[%clk 0:00:40]} 21. Rad1 {[%clk 0:01:31]}  Rfd8 {[%clk 0:00:39]} 22. Rxd7 {[%clk 0:01:24]}  Rxd7 {[%clk 0:00:40]} 23. e5 {[%clk 0:01:19]}  h6 {[%clk 0:00:24]} 24. e6 {[%clk 0:01:09]}  Qxe6 {[%clk 0:00:20]} 25. Qxe6 {[%clk 0:01:08]}  fxe6 {[%clk 0:00:21]} 26. Rxe6 {[%clk 0:01:08]}  Rd1+ {[%clk 0:00:19]} 27. Kh2 {[%clk 0:01:08]}  Kf7 {[%clk 0:00:20]} 28. Re2 {[%clk 0:01:07]}  b6 {[%clk 0:00:19]} 29. Nd2 {[%clk 0:01:02]}  a5 {[%clk 0:00:16]} 30. Nf3 {[%clk 0:00:57]}  Bf8 {[%clk 0:00:12]} 31. Re1 {[%clk 0:00:53]}  Bd6+ {[%clk 0:00:12]} 32. g3 {[%clk 0:00:53]}  Rd3 {[%clk 0:00:12]} 33. Kg2 {[%clk 0:00:52]}  a4 {[%clk 0:00:13]} 34. a3 {[%clk 0:00:48]}  Kf6 {[%clk 0:00:12]} 35. Re4 {[%clk 0:00:46]}  Rd1 {[%clk 0:00:12]} 36. Rxa4 {[%clk 0:00:45]}  Rb1 {[%clk 0:00:12]} 37. Nd2 {[%clk 0:00:34]}  Rxb2 {[%clk 0:00:11]} 38. Nc4 {[%clk 0:00:34]}  Rb3 {[%clk 0:00:11]} 39. Nxd6 {[%clk 0:00:32]}  cxd6 {[%clk 0:00:11]} 40. Rb4 {[%clk 0:00:30]}  Rxa3 {[%clk 0:00:11]} 41. Rxb6 {[%clk 0:00:29]}  Rxc3 {[%clk 0:00:11]} 42. Rxd6+ {[%clk 0:00:29]}  Kf7 {[%clk 0:00:12]} 43. g4 {[%clk 0:00:25]}  Rc5 {[%clk 0:00:11]} 44. h4 {[%clk 0:00:22]}  h5 {[%clk 0:00:08]} 45. g5 {[%clk 0:00:18]}  Rc4 {[%clk 0:00:09]} 46. Rf6+ {[%clk 0:00:17]}  Kg7 {[%clk 0:00:08]} 47. f3 {[%clk 0:00:17]}  Rxh4 {[%clk 0:00:06]} 48. f4 {[%clk 0:00:13]}  Rg4+ {[%clk 0:00:06]} 49. Kh2 {[%clk 0:00:12]}  Rh4+ {[%clk 0:00:06]} 50. Kg2 {[%clk 0:00:12]}  Rg4+ {[%clk 0:00:07]} 51. Kh2 {[%clk 0:00:12]}  Rh4+ {[%clk 0:00:07]} 52. Kg2 {[%clk 0:00:13]} 1/2-1/2


[Site "https://www.chess.com"]

[Event "Titled Tuesday Blitz March 15 Early 2022"]
[White "Goriatchkin, Jouri"]
[Black "Hoffmann, Asa"]
[WhiteFideId "4120183"]
[BlackFideId "2001470"]
[WhiteElo "966"]
[BlackElo "2117"]
[Result "0-1"]
[Round "06"]
[TimeControl "180+1"]
[Date "2022.03.15"]
[WhiteClock "0:00:02"]
[BlackClock "0:00:50"]

1. d4 {[%clk 0:03:00]}  Nf6 {[%clk 0:02:59]} 2. Bg5 {[%clk 0:02:59]}  e6 {[%clk 0:02:58]} 3. c4 {[%clk 0:02:59]}  Be7 {[%clk 0:02:55]} 4. e3 {[%clk 0:02:57]}  b6 {[%clk 0:02:54]} 5. Nc3 {[%clk 0:02:55]}  Bb7 {[%clk 0:02:54]} 6. Nf3 {[%clk 0:02:55]}  d6 {[%clk 0:02:52]} 7. Be2 {[%clk 0:02:50]}  Nbd7 {[%clk 0:02:50]} 8. O-O {[%clk 0:02:48]}  c5 {[%clk 0:02:48]} 9. Bf4 {[%clk 0:02:41]}  a6 {[%clk 0:02:47]} 10. h3 {[%clk 0:02:41]}  O-O {[%clk 0:02:37]} 11. a3 {[%clk 0:02:38]}  Re8 {[%clk 0:02:33]} 12. Re1 {[%clk 0:02:02]}  Bf8 {[%clk 0:02:32]} 13. Bh2 {[%clk 0:01:55]}  e5 {[%clk 0:02:29]} 14. d5 {[%clk 0:01:51]}  g6 {[%clk 0:02:23]} 15. e4 {[%clk 0:01:50]}  Bh6 {[%clk 0:02:21]} 16. b4 {[%clk 0:01:43]}  Nh5 {[%clk 0:02:18]} 17. b5 {[%clk 0:01:39]}  a5 {[%clk 0:02:15]} 18. Nd2 {[%clk 0:01:29]}  Nf4 {[%clk 0:02:11]} 19. Bxf4 {[%clk 0:01:21]}  Bxf4 {[%clk 0:02:10]} 20. Nf1 {[%clk 0:01:11]}  Nf6 {[%clk 0:02:08]} 21. Bd3 {[%clk 0:01:09]}  Bc8 {[%clk 0:02:07]} 22. Ne2 {[%clk 0:01:02]}  Bh6 {[%clk 0:02:06]} 23. Nc3 {[%clk 0:00:55]}  Nh5 {[%clk 0:02:05]} 24. Ne3 {[%clk 0:00:45]}  Qh4 {[%clk 0:01:59]} 25. Qf3 {[%clk 0:00:40]}  Rf8 {[%clk 0:01:56]} 26. a4 {[%clk 0:00:29]}  Qf4 {[%clk 0:01:53]} 27. Qxf4 {[%clk 0:00:27]}  Nxf4 {[%clk 0:01:53]} 28. Bf1 {[%clk 0:00:27]}  Bd7 {[%clk 0:01:52]} 29. Kh2 {[%clk 0:00:26]}  f5 {[%clk 0:01:51]} 30. g3 {[%clk 0:00:25]}  Nh5 {[%clk 0:01:50]} 31. Kg2 {[%clk 0:00:18]}  f4 {[%clk 0:01:49]} 32. gxf4 {[%clk 0:00:16]}  Nxf4+ {[%clk 0:01:48]} 33. Kh2 {[%clk 0:00:16]}  Rf7 {[%clk 0:01:46]} 34. Ncd1 {[%clk 0:00:13]}  Raf8 {[%clk 0:01:45]} 35. Bg2 {[%clk 0:00:12]}  Nh5 {[%clk 0:01:42]} 36. Kg1 {[%clk 0:00:12]}  Bf4 {[%clk 0:01:39]} 37. Ng4 {[%clk 0:00:12]}  Kg7 {[%clk 0:01:38]} 38. f3 {[%clk 0:00:11]}  Bg3 {[%clk 0:01:37]} 39. Re2 {[%clk 0:00:12]}  Nf4 {[%clk 0:01:37]} 40. Rc2 {[%clk 0:00:12]}  h5 {[%clk 0:01:36]} 41. Nge3 {[%clk 0:00:12]}  Nxh3+ {[%clk 0:01:33]} 42. Bxh3 {[%clk 0:00:12]}  Bxh3 {[%clk 0:01:32]} 43. Nf1 {[%clk 0:00:11]}  Bh4 {[%clk 0:01:31]} 44. Nh2 {[%clk 0:00:11]}  Bg3 {[%clk 0:01:24]} 45. Rc3 {[%clk 0:00:09]}  h4 {[%clk 0:01:23]} 46. Raa3 {[%clk 0:00:09]}  Bd7 {[%clk 0:01:19]} 47. Nf2 {[%clk 0:00:09]}  g5 {[%clk 0:01:18]} 48. Nfg4 {[%clk 0:00:09]}  Bxg4 {[%clk 0:01:18]} 49. Nxg4 {[%clk 0:00:10]}  Kg6 {[%clk 0:01:17]} 50. Kg2 {[%clk 0:00:10]}  Bf4 {[%clk 0:01:17]} 51. Kh3 {[%clk 0:00:11]}  Bg3 {[%clk 0:01:14]} 52. Rd3 {[%clk 0:00:11]}  Rf4 {[%clk 0:01:14]} 53. Rab3 {[%clk 0:00:11]}  Rxg4 {[%clk 0:01:14]} 54. Kxg4 {[%clk 0:00:10]}  Rf4+ {[%clk 0:01:13]} 55. Kh3 {[%clk 0:00:11]}  g4+ {[%clk 0:01:13]} 56. fxg4 {[%clk 0:00:09]}  Rxe4 {[%clk 0:01:13]} 57. Rbc3 {[%clk 0:00:10]}  Kg5 {[%clk 0:01:12]} 58. Rxg3 {[%clk 0:00:10]}  hxg3 {[%clk 0:01:12]} 59. Kxg3 {[%clk 0:00:10]}  Rd4 {[%clk 0:01:10]} 60. Kf3 {[%clk 0:00:10]}  Rd1 {[%clk 0:01:05]} 61. Rc2 {[%clk 0:00:05]}  Ra1 {[%clk 0:01:03]} 62. Rh2 {[%clk 0:00:03]}  Ra3+ {[%clk 0:01:02]} 63. Ke4 {[%clk 0:00:02]}  Rxa4 {[%clk 0:01:02]} 64. Kd3 {[%clk 0:00:03]}  Ra3+ {[%clk 0:01:01]} 65. Ke4 {[%clk 0:00:03]}  Rc3 {[%clk 0:01:01]} 66. Rh5+ {[%clk 0:00:03]}  Kg6 {[%clk 0:01:01]} 67. Rh8 {[%clk 0:00:02]}  Rxc4+ {[%clk 0:01:01]} 68. Kd3 {[%clk 0:00:01]}  Rxg4 {[%clk 0:01:00]} 69. Rd8 {[%clk 0:00:01]}  Kf5 {[%clk 0:01:00]} 70. Rxd6 {[%clk 0:00:01]}  a4 {[%clk 0:00:58]} 71. Rxb6 {[%clk 0:00:02]}  Rd4+ {[%clk 0:00:58]} 72. Ke3 {[%clk 0:00:02]}  Rxd5 {[%clk 0:00:58]} 73. Ra6 {[%clk 0:00:02]}  c4 {[%clk 0:00:58]} 74. b6 {[%clk 0:00:02]}  Rb5 {[%clk 0:00:57]} 75. Rxa4 {[%clk 0:00:02]}  c3 {[%clk 0:00:57]} 76. Rc4 {[%clk 0:00:02]}  Rxb6 {[%clk 0:00:56]} 77. Rxc3 {[%clk 0:00:03]}  Rd6 {[%clk 0:00:56]} 78. Rc5 {[%clk 0:00:03]}  Ra6 {[%clk 0:00:55]} 79. Rc8 {[%clk 0:00:03]}  Ra3+ {[%clk 0:00:55]} 80. Ke2 {[%clk 0:00:02]}  Kf4 {[%clk 0:00:55]} 81. Rf8+ {[%clk 0:00:02]}  Ke4 {[%clk 0:00:55]} 82. Rh8 {[%clk 0:00:03]}  Ra2+ {[%clk 0:00:55]} 83. Ke1 {[%clk 0:00:03]}  Kd4 {[%clk 0:00:54]} 84. Rd8+ {[%clk 0:00:02]}  Ke3 {[%clk 0:00:54]} 85. Kf1 {[%clk 0:00:02]}  Ra1+ {[%clk 0:00:53]} 86. Kg2 {[%clk 0:00:03]}  e4 {[%clk 0:00:53]} 87. Kg3 {[%clk 0:00:02]}  Rg1+ {[%clk 0:00:52]} 88. Kh2 {[%clk 0:00:03]}  Rg6 {[%clk 0:00:52]} 89. Kh1 {[%clk 0:00:02]}  Ke2 {[%clk 0:00:52]} 90. Re8 {[%clk 0:00:02]}  e3 {[%clk 0:00:51]} 91. Rd8 {[%clk 0:00:02]}  Kf2 {[%clk 0:00:51]} 92. Rf8+ {[%clk 0:00:02]}  Ke1 {[%clk 0:00:51]} 93. Re8 {[%clk 0:00:02]}  e2 {[%clk 0:00:51]} 94. Rd8 {[%clk 0:00:02]}  Rf6 {[%clk 0:00:50]} 0-1


[Site "https://www.chess.com"]

[Event "Titled Tuesday Blitz March 15 Early 2022"]
[White "Hambleton, Aman"]
[Black "Narayanan.S.L"]
[WhiteFideId "2606577"]
[BlackFideId "5058422"]
[WhiteElo "2552"]
[BlackElo "2494"]
[Result "0-1"]
[Round "06"]
[TimeControl "180+1"]
[Date "2022.03.15"]
[WhiteClock "0:00:01"]
[BlackClock "0:00:39"]

1. d4 {[%clk 0:02:59]}  c5 {[%clk 0:02:58]} 2. d5 {[%clk 0:02:55]}  e5 {[%clk 0:02:58]} 3. c4 {[%clk 0:02:52]}  d6 {[%clk 0:02:58]} 4. Nc3 {[%clk 0:02:53]}  g6 {[%clk 0:02:58]} 5. h4 {[%clk 0:02:00]}  h5 {[%clk 0:02:54]} 6. Nf3 {[%clk 0:01:51]}  Bh6 {[%clk 0:02:53]} 7. g3 {[%clk 0:01:19]}  Bxc1 {[%clk 0:02:50]} 8. Qxc1 {[%clk 0:01:20]}  Nf6 {[%clk 0:02:46]} 9. Ng5 {[%clk 0:01:10]}  a6 {[%clk 0:02:44]} 10. a3 {[%clk 0:01:03]}  b5 {[%clk 0:02:43]} 11. cxb5 {[%clk 0:00:56]}  axb5 {[%clk 0:02:43]} 12. Nxb5 {[%clk 0:00:56]}  Nxd5 {[%clk 0:02:29]} 13. Qd2 {[%clk 0:00:49]}  Bb7 {[%clk 0:01:02]} 14. e4 {[%clk 0:00:37]}  O-O {[%clk 0:01:02]} 15. exd5 {[%clk 0:00:35]}  Qb6 {[%clk 0:01:03]} 16. Nc3 {[%clk 0:00:20]}  Nd7 {[%clk 0:01:03]} 17. Bh3 {[%clk 0:00:15]}  Nf6 {[%clk 0:01:03]} 18. O-O {[%clk 0:00:14]}  Rfb8 {[%clk 0:01:03]} 19. Rfb1 {[%clk 0:00:12]}  c4 {[%clk 0:01:02]} 20. Bf1 {[%clk 0:00:09]}  Qc7 {[%clk 0:01:00]} 21. Rc1 {[%clk 0:00:09]}  Ra5 {[%clk 0:00:59]} 22. Rc2 {[%clk 0:00:06]}  Nxd5 {[%clk 0:00:56]} 23. Nxd5 {[%clk 0:00:05]}  Rxd5 {[%clk 0:00:57]} 24. Qe3 {[%clk 0:00:03]}  Rc5 {[%clk 0:00:56]} 25. Ne4 {[%clk 0:00:02]}  Bxe4 {[%clk 0:00:56]} 26. Qxe4 {[%clk 0:00:03]}  d5 {[%clk 0:00:56]} 27. Qe2 {[%clk 0:00:02]}  Rb3 {[%clk 0:00:51]} 28. Rd1 {[%clk 0:00:01]}  e4 {[%clk 0:00:44]} 29. Qd2 {[%clk 0:00:01]}  Rcb5 {[%clk 0:00:39]} 0-1


[Site "https://www.chess.com"]

[Event "Titled Tuesday Blitz March 15 Early 2022"]
[White "Hammer, Jon Ludvig"]
[Black "Tabatabaei, M. Amin"]
[WhiteFideId "1503707"]
[BlackFideId "12521213"]
[WhiteElo "2607"]
[BlackElo "2544"]
[Result "1/2-1/2"]
[Round "06"]
[TimeControl "180+1"]
[Date "2022.03.15"]
[WhiteClock "0:00:03"]
[BlackClock "0:00:02"]

1. e4 {[%clk 0:03:00]}  e6 {[%clk 0:02:59]} 2. d4 {[%clk 0:02:56]}  d5 {[%clk 0:03:00]} 3. exd5 {[%clk 0:02:56]}  exd5 {[%clk 0:03:00]} 4. Nf3 {[%clk 0:02:56]}  Bd6 {[%clk 0:02:54]} 5. Bd3 {[%clk 0:02:52]}  Ne7 {[%clk 0:02:54]} 6. O-O {[%clk 0:02:51]}  O-O {[%clk 0:02:52]} 7. Re1 {[%clk 0:02:47]}  Bf5 {[%clk 0:02:46]} 8. Bg5 {[%clk 0:02:46]}  f6 {[%clk 0:02:43]} 9. Bh4 {[%clk 0:02:46]}  Nbc6 {[%clk 0:02:37]} 10. Bg3 {[%clk 0:02:44]}  Bxg3 {[%clk 0:02:28]} 11. hxg3 {[%clk 0:02:45]}  Qd7 {[%clk 0:02:27]} 12. c3 {[%clk 0:02:31]}  Rae8 {[%clk 0:02:24]} 13. Na3 {[%clk 0:02:29]}  Bxd3 {[%clk 0:02:15]} 14. Qxd3 {[%clk 0:02:29]}  Nf5 {[%clk 0:02:16]} 15. Nc2 {[%clk 0:02:13]}  a6 {[%clk 0:02:11]} 16. Nd2 {[%clk 0:01:32]}  g6 {[%clk 0:01:54]} 17. g4 {[%clk 0:01:23]}  Ng7 {[%clk 0:01:43]} 18. Qf3 {[%clk 0:01:13]}  Nd8 {[%clk 0:01:30]} 19. Rxe8 {[%clk 0:01:06]}  Nxe8 {[%clk 0:01:26]} 20. Re1 {[%clk 0:01:02]}  c6 {[%clk 0:01:23]} 21. Nb4 {[%clk 0:00:53]}  a5 {[%clk 0:01:18]} 22. Nd3 {[%clk 0:00:52]}  b6 {[%clk 0:01:19]} 23. Qe2 {[%clk 0:00:46]}  Nd6 {[%clk 0:01:15]} 24. Qe7 {[%clk 0:00:45]}  Qxe7 {[%clk 0:01:12]} 25. Rxe7 {[%clk 0:00:45]}  Rf7 {[%clk 0:01:13]} 26. Rxf7 {[%clk 0:00:45]}  Kxf7 {[%clk 0:01:14]} 27. f3 {[%clk 0:00:39]}  g5 {[%clk 0:01:08]} 28. Nf1 {[%clk 0:00:35]}  Ke6 {[%clk 0:01:06]} 29. Ne3 {[%clk 0:00:28]}  N8b7 {[%clk 0:01:06]} 30. Kf2 {[%clk 0:00:26]}  c5 {[%clk 0:01:05]} 31. a4 {[%clk 0:00:09]}  c4 {[%clk 0:00:44]} 32. Ne1 {[%clk 0:00:09]}  b5 {[%clk 0:00:44]} 33. axb5 {[%clk 0:00:10]}  Nxb5 {[%clk 0:00:45]} 34. N1c2 {[%clk 0:00:10]}  N7d6 {[%clk 0:00:44]} 35. g3 {[%clk 0:00:10]}  f5 {[%clk 0:00:38]} 36. gxf5+ {[%clk 0:00:07]}  Nxf5 {[%clk 0:00:38]} 37. Nxf5 {[%clk 0:00:07]}  Kxf5 {[%clk 0:00:39]} 38. g4+ {[%clk 0:00:07]}  Ke6 {[%clk 0:00:40]} 39. Ke3 {[%clk 0:00:05]}  Nd6 {[%clk 0:00:28]} 40. f4 {[%clk 0:00:05]}  h6 {[%clk 0:00:26]} 41. Kf3 {[%clk 0:00:04]}  Ne4 {[%clk 0:00:13]} 42. Ne3 {[%clk 0:00:04]}  Nd2+ {[%clk 0:00:11]} 43. Ke2 {[%clk 0:00:04]}  Ne4 {[%clk 0:00:09]} 44. Nf5 {[%clk 0:00:02]}  gxf4 {[%clk 0:00:09]} 45. Kf3 {[%clk 0:00:02]}  Ng5+ {[%clk 0:00:02]} 46. Kxf4 {[%clk 0:00:02]}  Nf7 {[%clk 0:00:03]} 47. Ng7+ {[%clk 0:00:02]}  Kf6 {[%clk 0:00:03]} 48. Nh5+ {[%clk 0:00:03]}  Ke6 {[%clk 0:00:03]} 49. Ng3 {[%clk 0:00:03]}  a4 {[%clk 0:00:03]} 50. Nf1 {[%clk 0:00:03]}  Nd6 {[%clk 0:00:02]} 51. Ne3 {[%clk 0:00:03]}  Nb5 {[%clk 0:00:02]} 52. Nc2 {[%clk 0:00:03]}  Kf6 {[%clk 0:00:03]} 53. Na3 {[%clk 0:00:02]}  Nd6 {[%clk 0:00:02]} 54. Nc2 {[%clk 0:00:02]}  Nb5 {[%clk 0:00:03]} 55. Ne3 {[%clk 0:00:03]}  Ke6 {[%clk 0:00:02]} 56. Nc2 {[%clk 0:00:03]}  Kf6 {[%clk 0:00:02]} 1/2-1/2


[Site "https://www.chess.com"]

[Event "Titled Tuesday Blitz March 15 Early 2022"]
[White "Hansen, Soren Bech"]
[Black "Zheenbekov, Nurgazy"]
[WhiteFideId "1400681"]
[BlackFideId "13800485"]
[WhiteElo "2231"]
[BlackElo "1959"]
[Result "1-0"]
[Round "06"]
[TimeControl "180+1"]
[Date "2022.03.15"]
[WhiteClock "0:00:14"]
[BlackClock "0:00:01"]

1. e4 {[%clk 0:02:51]}  e5 {[%clk 0:02:59]} 2. Bc4 {[%clk 0:02:50]}  Nf6 {[%clk 0:02:58]} 3. d3 {[%clk 0:02:50]}  Be7 {[%clk 0:02:58]} 4. Nf3 {[%clk 0:02:49]}  Nc6 {[%clk 0:02:57]} 5. O-O {[%clk 0:02:49]}  O-O {[%clk 0:02:57]} 6. a4 {[%clk 0:02:49]}  d5 {[%clk 0:02:51]} 7. exd5 {[%clk 0:02:49]}  Nxd5 {[%clk 0:02:51]} 8. Re1 {[%clk 0:02:49]}  Bg4 {[%clk 0:02:51]} 9. h3 {[%clk 0:02:46]}  Bh5 {[%clk 0:02:51]} 10. Nbd2 {[%clk 0:02:33]}  Kh8 {[%clk 0:02:42]} 11. Nf1 {[%clk 0:02:27]}  f6 {[%clk 0:01:59]} 12. Ng3 {[%clk 0:02:21]}  Bg6 {[%clk 0:01:57]} 13. Nh4 {[%clk 0:02:20]}  Bf7 {[%clk 0:01:57]} 14. Nhf5 {[%clk 0:02:18]}  Bc5 {[%clk 0:01:48]} 15. c3 {[%clk 0:02:09]}  a6 {[%clk 0:01:31]} 16. Qg4 {[%clk 0:01:53]}  g6 {[%clk 0:01:30]} 17. Nh6 {[%clk 0:01:53]}  f5 {[%clk 0:01:19]} 18. Nxf7+ {[%clk 0:01:52]}  Rxf7 {[%clk 0:01:18]} 19. Qf3 {[%clk 0:01:50]}  e4 {[%clk 0:01:15]} 20. Rxe4 {[%clk 0:01:29]}  Rd7 {[%clk 0:01:01]} 21. Nxf5 {[%clk 0:01:17]}  gxf5 {[%clk 0:00:51]} 22. Qxf5 {[%clk 0:01:17]}  Qf8 {[%clk 0:00:42]} 23. Qxf8+ {[%clk 0:00:58]}  Rxf8 {[%clk 0:00:40]} 24. d4 {[%clk 0:00:58]}  Be7 {[%clk 0:00:34]} 25. Bh6 {[%clk 0:00:56]}  Rfd8 {[%clk 0:00:29]} 26. Rae1 {[%clk 0:00:54]}  Nf6 {[%clk 0:00:19]} 27. Re6 {[%clk 0:00:44]}  Bf8 {[%clk 0:00:06]} 28. Rxf6 {[%clk 0:00:39]}  Bxh6 {[%clk 0:00:06]} 29. Rxh6 {[%clk 0:00:38]}  Kg7 {[%clk 0:00:07]} 30. Rhe6 {[%clk 0:00:36]}  Rg8 {[%clk 0:00:07]} 31. Bd3 {[%clk 0:00:20]}  Rf8 {[%clk 0:00:07]} 32. Be4 {[%clk 0:00:17]}  Nd8 {[%clk 0:00:04]} 33. Re5 {[%clk 0:00:16]}  c6 {[%clk 0:00:01]} 34. Bf3 {[%clk 0:00:16]}  Rdf7 {[%clk 0:00:01]} 35. Re7 {[%clk 0:00:15]}  Kg8 {[%clk 0:00:01]} 36. Rxf7 {[%clk 0:00:14]} 1-0


[Site "https://www.chess.com"]

[Event "Titled Tuesday Blitz March 15 Early 2022"]
[White "Horcajuelo Rocamora, Martin"]
[Black "Beerdsen, Thomas"]
[WhiteFideId "24573027"]
[BlackFideId "1030108"]
[WhiteElo "1706"]
[BlackElo "2585"]
[Result "0-1"]
[Round "06"]
[TimeControl "180+1"]
[Date "2022.03.15"]
[WhiteClock "0:01:50"]
[BlackClock "0:01:55"]

1. e4 {[%clk 0:02:56]}  e5 {[%clk 0:02:59]} 2. Nf3 {[%clk 0:02:55]}  Nc6 {[%clk 0:02:59]} 3. Bb5 {[%clk 0:02:55]}  f5 {[%clk 0:03:00]} 4. d3 {[%clk 0:02:51]}  fxe4 {[%clk 0:02:59]} 5. dxe4 {[%clk 0:02:52]}  Nf6 {[%clk 0:02:59]} 6. Nbd2 {[%clk 0:02:51]}  Bc5 {[%clk 0:02:58]} 7. O-O {[%clk 0:02:50]}  d6 {[%clk 0:02:57]} 8. Bc4 {[%clk 0:02:50]}  Na5 {[%clk 0:02:56]} 9. Bb5+ {[%clk 0:02:46]}  c6 {[%clk 0:02:55]} 10. Ba4 {[%clk 0:02:45]}  b5 {[%clk 0:02:47]} 11. Bb3 {[%clk 0:02:42]}  Bb6 {[%clk 0:02:45]} 12. c4 {[%clk 0:02:36]}  Nxb3 {[%clk 0:02:39]} 13. Qxb3 {[%clk 0:02:37]}  Be6 {[%clk 0:02:37]} 14. Qc2 {[%clk 0:02:23]}  O-O {[%clk 0:02:27]} 15. Ng5 {[%clk 0:02:18]}  Qe7 {[%clk 0:02:09]} 16. Nxe6 {[%clk 0:02:14]}  Qxe6 {[%clk 0:02:10]} 17. b3 {[%clk 0:02:13]}  Ng4 {[%clk 0:02:07]} 18. Nf3 {[%clk 0:02:06]}  Qg6 {[%clk 0:01:58]} 19. cxb5 {[%clk 0:01:50]}  Rxf3 {[%clk 0:01:55]} 0-1


[Site "https://www.chess.com"]